Cogmind - Beta 15 @@@ ROGUE MODE // 2025.09.29 @ 22:40:30 Player: Autumn Result: Destroyed by G-50 Soldier with Heavy Laser Performance ------------- Evolutions (2) 1000 Regions Visited (5) 1000 Robots Destroyed (26) 130 Value Destroyed (904) 904 Prototype IDs (1) 20 Alien Tech Used (0) 0 Bonus (295) 295 TOTAL SCORE: 3349 Bonus ------- Pacifist 200 Follower Combat Kills 95 Cogmind --------- Core Integrity 0/550 Matter 184/300 Energy 260/480 System Corruption 0% Temperature Danger (452) Movement Treading (148) Location -8/Storage Parts ------- > --- POWER (1) -------- Heavy Ion Engine > --- PROPULSION (4) --- Light Treads Advanced Treads Advanced Treads Advanced Treads > --- UTILITY (3) ------ Compact Battery Hacking Suite > --- WEAPON (3) ------- Beamcaster > --- INVENTORY (5) ---- Drone Bay (0/2) Peak State ------------ > --- POWER ------------ Heavy Ion Engine > --- PROPULSION ------- Light Treads Advanced Treads Advanced Treads Advanced Treads > --- UTILITY ---------- Compact Battery Reflective Plating Hacking Suite > --- WEAPON ----------- Beamcaster > --- INVENTORY -------- Drone Bay [Rating: 27] Favorites ----------- Power Ion Engine Engine Ion Engine Propulsion Aluminum Leg Treads Advanced Treads Leg Aluminum Leg Utility Small Storage Unit Device Hardlight Generator Storage Small Storage Unit Processor Targeting Computer Hackware Hacking Suite Protection Light Armor Plating Weapon EM Pulse Gun Energy Gun EM Pulse Gun Ballistic Gun Assault Rifle Launcher Rocket Launcher Build | -11 -10 -10 -9 -8 -8 ------- Run | Yrd Mat Min Mat Mat Sto Slots Evolved 4 | . . . 2 2 . Power . | . . . . . . Propulsion 2 | . . . 1 1 . Utility 1 | . . . 1 . . Weapon 1 | . . . . 1 . Parts Attached 29 | 6 1 . 4 3 15 Power 3 | 1 . . . . 2 Engine 3 | 1 . . . . 2 Core . | . . . . . . Reactor . | . . . . . . Propulsion 8 | 2 . . 1 . 5 Treads 4 | . . . . . 4 Leg 4 | 2 . . 1 . 1 Wheel . | . . . . . . Hover . | . . . . . . Flight . | . . . . . . Utility 8 | 1 1 . . 2 4 Device 2 | . . . . 1 1 Storage 2 | 1 . . . . 1 Processor 1 | . . . . . 1 Hackware 1 | . . . . 1 . Protection 2 | . 1 . . . 1 Artifact . | . . . . . . Weapon 10 | 2 . . 3 1 4 Energy Gun 4 | 1 . . . . 3 Energy Cannon . | . . . . . . Ballistic Gun 4 | 1 . . 1 1 1 Ballistic Cannon . | . . . . . . Launcher 2 | . . . 2 . . Special Weapon . | . . . . . . Impact Weapon . | . . . . . . Slashing Weapon . | . . . . . . Piercing Weapon . | . . . . . . Special Melee Weapon . | . . . . . . Unidentified Prototypes 1 | . . . . . 1 Parts Lost 20 | . . . . . 20 Power 2 | . . . . . 2 Propulsion 4 | . . . . . 4 Utility 5 | . . . . . 5 Weapon 9 | . . . . . 9 Highest Loss Streak 13 | . . . . . 13 To Critical Strikes . | . . . . . . Average Backups 3 | 1 2 3 4 5 3 Power . | . 1 1 1 1 . Propulsion . | . . . . . . Utility . | . . . . . 1 Weapon 2 | . 1 2 3 3 1 Tool/Special . | . . . . . . Unused Backups . | . . . . . . Power . | . . . . . . Propulsion . | . . . . . . Utility . | . . . . . . Weapon . | . . . . . . Tool/Special . | . . . . . . Average Slot Usage (%) 76 | . 89 100 81 88 53 Engine 9 | . 14 14 11 9 6 Treads 1 | . . . . . 3 Leg 21 | . 28 28 26 27 9 Device 2 | . . . . 7 3 Storage 9 | . 14 14 11 9 5 Hackware 3 | . . . . 4 9 Protection 6 | . 4 14 11 4 2 Energy Gun 5 | . 14 14 7 . 2 Ballistic Gun 11 | . 14 14 8 17 7 Launcher 4 | . . . 5 9 2 Peak Build Rating 27 | 6 7 7 10 18 27 Average Rating 9 | 5 6 7 7 16 12 On Entrance 8 | . 6 7 7 10 18 Naked Turns . | . . . . . . Heaviest Build 28 | 14 17 17 20 28 25 Greatest Support 86 | 20 20 20 30 30 86 Greatest Overweight (x) 5 | . . . . . 5 Average Overweight (x) . | . . . . . . Largest Inventory Capacity 8 | 8 8 8 8 8 8 Average Capacity 7 | 7 8 8 8 8 6 Most Carried 8 | 5 4 3 6 7 8 Average Carried 3 | 2 2 3 4 5 3 Final Capacity 8 | 8 8 8 8 8 5 Final Carried 7 | 2 3 3 5 7 1 Class Distribution -------------------- 75% | Mutant 24% | Tank Dominant Class ---------------- Mutant | -10/Materials Mutant | -10/Mines Mutant | -9/Materials Tank | -8/Materials Mutant | -8/Storage Resources | -11 -10 -10 -9 -8 -8 ----------- Run | Yrd Mat Min Mat Mat Sto Matter Collected 589 | 225 . . 81 . 283 Remotely . | . . . . . . Salvage Created 754 | . . . 269 32 453 Parts 53 | . . . 27 . 26 Haulers Intercepted 1 | . . . . . 1 Recyclers Shooed . | . . . . . . Parts Field Recycled . | . . . . . . Retrieved Matter . | . . . . . . Parts Self-Destructed . | . . . . . . Prevented . | . . . . . . Kills | -11 -10 -10 -9 -8 -8 ------- Run | Yrd Mat Min Mat Mat Sto Combat Hostiles Destroyed 22 | . . . 12 1 9 Melee 1 | . . . . . 1 Guns 10 | . . . 4 . 6 AOE 11 | . . . 8 1 2 Classes Destroyed 7 | . . . 5 1 1 Hauler 1 | . . . . . 1 Recycler 1 | . . . 1 . . Watcher 2 | . . . 1 1 . Swarmer 7 | . . . 7 . . Grunt 11 | . . . 4 . 7 Sentry 3 | . . . 1 . 2 Hunter 1 | . . . . 1 . Best Kill Streak 9 | . . . 9 2 6 Combat Bots Only 8 | . . . 8 1 6 Max Kills in Single Turn 3 | . . . 3 2 2 Gunslinging . | . . . . . . Exploded 3 | . . . 3 1 2 Melee 1 | . . . . . 1 Uniques/NPCs Destroyed . | . . . . . . Combat | -11 -10 -10 -9 -8 -8 -------- Run | Yrd Mat Min Mat Mat Sto Hostile Shots Fired 224 | . . . 41 4 179 Missed 59 | . . . 17 3 39 Hits 165 | . . . 24 1 140 Melee 3 | . . . . . 3 Projectile 162 | . . . 24 1 137 Critical Strikes 11 | . . . . . 11 Damage Taken 2578 | . . . 216 14 2348 Core 590 | . . . 32 . 558 Absorbed by Shields . | . . . . . . Ignored by Resistances 42 | . . . . . 42 Core Remaining (%) 97 | 100 . 100 92 . . Volleys Fired 51 | . . . 16 7 28 Largest 3 | . . . 2 2 3 Hottest 100 | . . . 70 56 100 Shots Fired 81 | . . . 20 14 47 Gun 68 | . . . 13 11 44 Cannon . | . . . . . . Launcher 13 | . . . 7 3 3 Special . | . . . . . . Kinetic 39 | . . . 8 11 20 Thermal 20 | . . . . . 20 Explosive 13 | . . . 7 3 3 Electromagnetic 9 | . . . 5 . 4 Robot Hit Streak 10 | . . . 9 5 10 Robot Miss Streak 4 | . . . 2 2 4 Penetration Max . | . . . . . . Secondary Targets 2 | . . . . . 2 Max Gunslinging Chain 1 | . . . . . 1 Shots Hit Robots 57 | . . . 17 10 30 Core Hits 48 | . . . 22 4 22 Critical Kills . | . . . . . . Critical Parts Destroyed 1 | . . . . . 1 Critical Strikes 1 | . . . . . 1 Destroy 1 | . . . . . 1 Melee Attacks . | . . . . . . Impact . | . . . . . . Slashing . | . . . . . . Piercing . | . . . . . . Sneak Attacks . | . . . . . . Combat Hostiles . | . . . . . . Follow-up Attacks . | . . . . . . Damage Inflicted 1821 | . . . 663 332 826 Guns 759 | . . . 130 112 517 Cannons . | . . . . . . Explosions 1044 | . . . 533 220 291 Melee . | . . . . . . Ramming 18 | . . . . . 18 Kinetic 429 | . . . 84 112 233 Thermal 396 | . . . . . 396 Explosive 881 | . . . 533 220 128 Electromagnetic 97 | . . . 46 . 51 Impact . | . . . . . . Slashing . | . . . . . . Piercing . | . . . . . . Highest Corruption . | . . . . . . Average Corruption . | . . . . . . Corruption Purged . | . . . . . . Corruption Blocked . | . . . . . . Overload Shots . | . . . . . . Overflow Damage 14 | . . . 7 . 7 Projectiles . | . . . . . . Explosions 14 | . . . 7 . 7 Melee . | . . . . . . Knockbacks . | . . . . . . Impact . | . . . . . . Kinetic . | . . . . . . Secondary . | . . . . . . Self-Inflicted Damage 91 | . . . . . 91 Shots 3 | . . . . . 3 Rammed 3 | . . . . . 3 Targets Rammed 3 | . . . . . 3 Kicked . | . . . . . . Crushed . | . . . . . . Highest Temperature 443 | . . . 9 . 443 Average Temperature 82 | . . . 5 . 90 Received Heat Transfer 1233 | . . . 18 . 1215 Effects 1 | . . . . . 1 Energy Bleed 1 | . . . . . 1 Siege Activations . | . . . . . . Martial Activations . | . . . . . . Shielding Activations . | . . . . . . Robots Disrupted . | . . . . . . Combat Hostiles . | . . . . . . Robots Corrupted . | . . . . . . Combat Hostiles . | . . . . . . Parts Fried . | . . . . . . Impact Corruptions . | . . . . . . Robots Melted . | . . . . . . Combat Hostiles . | . . . . . . Parts Melted 1 | . . . . . 1 Heat Transferred 560 | . . . . . 560 Parts Sabotaged . | . . . . . . Parts Stolen . | . . . . . . Parts Stripped . | . . . . . . Power Chain Reactions 1 | . . . . . 1 Alert | -11 -10 -10 -9 -8 -8 ------- Run | Yrd Mat Min Mat Mat Sto Maximum Alert Level 1 | . . . 1 . 1 Low Security (%) 87 | 100 100 100 71 100 67 Level 1 12 | . . . 28 . 32 Level 2 . | . . . . . . Level 3 . | . . . . . . Level 4 . | . . . . . . Level 5 . | . . . . . . High Security . | . . . . . . Max Security . | . . . . . . Peak Influence 348 | . . . 348 138 264 Initial 138 | . . . . 138 20 Average 63 | . . . 114 73 131 Influence Increases 1127 | . . . 388 60 679 Destroy 0b10 Robot/C 500 | . . . 240 20 240 Destroy 0b10 Robot/NC 20 | . . . 10 5 5 Destroy Leader 116 | . . . 52 12 52 Allied During Kill 11 | . . . . . 11 Successful Hack 18 | . . . 2 4 12 Disable Machine 45 | . . . 30 . 15 Anti-Garrison Action 150 | . . . . . 150 Destroy Structure 72 | . . . 39 19 14 Lose Combat Pursuer 195 | . . . 15 . 180 Influence Decreases 863 | . . . 60 340 463 Entered New Map 218 | . . . . 190 28 Time Decay 405 | . . . 60 150 195 Lost Part 180 | . . . . . 180 Lost Ally 60 | . . . . . 60 Squads Dispatched 9 | . . . 2 . 7 Investigation 2 | . . . 2 . . Extermination . | . . . . . . Reinforcement 2 | . . . . . 2 Assault 4 | . . . . . 4 Garrison 1 | . . . . . 1 Intercept . | . . . . . . Searches Triggered . | . . . . . . Construction Impeded 1 | . . . . . 1 Haulers Reinforced . | . . . . . . Active Scanning Responses . | . . . . . . Cargo Convoy Interrupts . | . . . . . . Stealth | -11 -10 -10 -9 -8 -8 --------- Run | Yrd Mat Min Mat Mat Sto Distress Signals 2 | . . . 1 . 1 Communications Jammed . | . . . . . . Distress Signals . | . . . . . . Times Spotted 53 | . 1 . 15 2 35 Peak Tracking Total 10 | . 1 . 9 2 10 Tactical Retreats 6 | . . . 1 . 5 Traps | -11 -10 -10 -9 -8 -8 ------- Run | Yrd Mat Min Mat Mat Sto Traps Triggered 1 | . . . . . 1 Indirectly . | . . . . . . Trap Hack Attempts . | . . . . . . Triggered . | . . . . . . Disarmed . | . . . . . . Reprogrammed 4 | . . . . 4 . Reused . | . . . . . . Traps Extracted . | . . . . . . Installed . | . . . . . . Triggered . | . . . . . . Machines | -11 -10 -10 -9 -8 -8 ---------- Run | Yrd Mat Min Mat Mat Sto Machines Disabled 4 | . . . 2 . 2 Max in Single Turn 1 | . . . 1 . 1 Garrison Access 1 | . . . . . 1 Machines Repaired . | . . . . . . Machines Dismantled . | . . . . . . Machines Sabotaged . | . . . . . . Overloaded Fab Kills . | . . . . . . Hacking | -11 -10 -10 -9 -8 -8 --------- Run | Yrd Mat Min Mat Mat Sto Machines Accessed 5 | . . . 2 1 2 Terminals 5 | . . . 2 1 2 Fabricators . | . . . . . . Repair Stations . | . . . . . . Recycling Units . | . . . . . . Scanalyzers . | . . . . . . Garrison Access . | . . . . . . Total Hacks 17 | . . . 7 3 7 Successful 10 | . . . 3 3 4 Failed 7 | . . . 4 . 3 Catastrophic . | . . . . . . Database Lockouts . | . . . . . . Manual . | . . . . . . Terminals 17 | . . . 7 3 7 Fabricators . | . . . . . . Repair Stations . | . . . . . . Recycling Units . | . . . . . . Scanalyzers . | . . . . . . Garrison Access . | . . . . . . Terminal Hacks 10 | . . . 3 3 4 Record 6 | . . . 3 . 3 Open Door 1 | . . . . . 1 Alert Level 1 | . . . . 1 . Reprogram Traps 1 | . . . . 1 . Zone Layout 1 | . . . . 1 . Fabricator Hacks . | . . . . . . Repair Station Hacks . | . . . . . . Recycling Unit Hacks . | . . . . . . Scanalyzer . | . . . . . . Garrison Access Hacks . | . . . . . . Unauthorized Hacks . | . . . . . . Terminals . | . . . . . . Fabricators . | . . . . . . Repair Stations . | . . . . . . Recycling Units . | . . . . . . Scanalyzers . | . . . . . . Garrison Access . | . . . . . . Data Cores Recovered . | . . . . . . Used . | . . . . . . Hacking Detections 3 | . . . 2 . 1 Full Trace Events 2 | . . . 2 . . Feedback Events . | . . . . . . Feedback Blocked . | . . . . . . Robot Schematics Acquired . | . . . . . . Robots Built . | . . . . . . Authchips . | . . . . . . Time . | . . . . . . Total Robot Build Rating . | . . . . . . Part Schematics Acquired . | . . . . . . Parts Built . | . . . . . . Authchips . | . . . . . . Time . | . . . . . . Total Part Build Rating . | . . . . . . Parts Repaired . | . . . . . . Time . | . . . . . . Parts Recycled . | . . . . . . Recycled Matter . | . . . . . . Retrieved Matter . | . . . . . . Retrieved Components . | . . . . . . Parts Scanalyzed . | . . . . . . Part Schematics Acquired . | . . . . . . Parts Damaged . | . . . . . . Bothacking | -11 -10 -10 -9 -8 -8 ------------ Run | Yrd Mat Min Mat Mat Sto Used RIF Installer . | . . . . . . Robots Hacked . | . . . . . . Non-combat . | . . . . . . Combat . | . . . . . . Robot Hacks Applied . | . . . . . . Relay Couplers Released 2 | . . . . . 2 Machine Destruction 2 | . . . . . 2 Fabnet Peak Effective % . | . . . . . . Robots Rewired . | . . . . . . Allies Hacked . | . . . . . . Hacks Repelled . | . . . . . . Allies | -11 -10 -10 -9 -8 -8 -------- Run | Yrd Mat Min Mat Mat Sto Total Allies 2 | . . . . . 2 Largest Group 2 | . . . . . 2 Highest-Rated Group 62 | . . . . . 62 Highest-Rated Ally 31 | . . . . . 31 Total Orders . | . . . . . . Ally Attacks 11 | . . . . . 11 Total Damage 230 | . . . . . 230 Kills 3 | . . . . . 3 Allies Corrupted . | . . . . . . Allies Melted . | . . . . . . Intel | -11 -10 -10 -9 -8 -8 ------- Run | Yrd Mat Min Mat Mat Sto Active Infowar (turns) . | . . . . . . Robot Analysis Total . | . . . . . . Derelict Logs Recovered 1 | . . 1 . . . Drone Launches 3 | . . . . . 3 Drone Recoveries 1 | . . . . . 1 Exploration | -11 -10 -10 -9 -8 -8 ------------- Run | Yrd Mat Min Mat Mat Sto Turns Passed 1784 | 431 216 110 257 315 455 Spaces Moved 1033 | 69 174 91 178 238 283 Core 128 | 27 . . . . 101 Treads 16 | . . . . . 16 Legs 889 | 42 174 91 178 238 166 Wheels . | . . . . . . Hover . | . . . . . . Flight . | . . . . . . Fastest Speed 50 | 50 120 120 120 120 50 Average Speed 118 | 92 120 120 120 120 122 Slowest Speed 300 | 120 120 120 120 120 300 Overloaded Moves . | . . . . . . Propulsion Burnouts . | . . . . . . Robots Hopped . | . . . . . . Potential Cave-ins . | . . . . . . Cave-ins Triggered . | . . . . . . Exploration Rate (%) 21 | 6 28 28 18 14 37 Regions Visited 5 Branch Regions 2 Pre-discovered Areas 1 | . . 1 . . . Known Exits Taken . | . . . . . . Unknown Exits Taken 5 | 1 1 1 1 1 . Scrap Searched . | . . . . . . Spaces Dug . | . . . . . . Terrain Destroyed 80 | . . . 45 22 13 Melee . | . . . . . . Projectile . | . . . . . . AOE 80 | . . . 45 22 13 Terrain Rammed . | . . . . . . Walls Destroyed . | . . . . . . Machines Disabled . | . . . . . . Actions | -11 -10 -10 -9 -8 -8 --------- Run | Yrd Mat Min Mat Mat Sto Total 1510 | 436 181 92 200 252 349 Wait 365 | 354 5 2 . . 4 Move 1028 | 68 173 90 177 237 283 Hop . | . . . . . . Pick Up 29 | 8 2 . 3 4 12 Fast Attach . | . . . . . . Attach 28 | 6 1 . 1 2 18 Detach . | . . . . . . Swap 6 | . . . 3 2 1 Drop . | . . . . . . Fire 51 | . . . 16 7 28 Melee . | . . . . . . Ram 3 | . . . . . 3 Kick . | . . . . . . Crush . | . . . . . . Escape Stasis . | . . . . . . Rewire . | . . . . . . Trap . | . . . . . . Miscellaneous . | . . . . . . Route ------- -11/Scrapyard -10/Materials -10/Mines -9/Materials -8/Materials -8/Storage History --------- Turn | Location | Event 5 | -11/Scrapyard | Discovered new exit (range 15) 432 | -11/Scrapyard | Entered Materials 433 | -10/Materials | Build established: Mutant 617 | -10/Materials | Discovered new exit (range 6) 648 | -10/Materials | Entered Mines 649 | -10/Mines | Assembled infested the area 690 | -10/Mines | Learned location of Zion (-7) 746 | -10/Mines | Discovered new exit (range 8) 758 | -10/Mines | Entered Materials 758 | -9/Materials | Evolved 2 slots: Propulsion x1, Utility x1 986 | -9/Materials | Destroyed 8 combat bots 989 | -9/Materials | Discovered new exit (range 13) 1015 | -9/Materials | Entered another Materials area 1015 | -8/Materials | Evolved 2 slots: Propulsion x1, Weapon x1 1176 | -8/Materials | Discovered new exit (range 13) 1309 | -8/Materials | Build established: Tank 1330 | -8/Materials | Entered Storage 1484 | -8/Storage | Core integrity fell below 50% 1530 | -8/Storage | Lost 13 parts (1p3n2u7w) 1597 | -8/Storage | Core integrity fell below 20% 1627 | -8/Storage | Lost 4 parts (2u2w) 1725 | -8/Storage | Met a pair of Derelict thieves 1785 | -8/Storage | Destroyed by G-50 Soldier with Heavy Laser Last Messages --------------- G-47 Trooper destroyed. Acquired Lgt. Treads. Y-45 Defender destroyed. C-30 ARC bursts open, deploying its payload. B-36 Bruiser unfolds itself. G-47 Trooper unfolds itself. B-36 Bruiser destroyed. R0-XVZ(g) destroyed. 7T-XM8(g) destroyed. Acquired Prototype Engine. Identified Hvy. Ion Engine. Acquired Beamcaster. Critical hit (Burn: +37). K-01 Serf collects debris. Reflective Plating destroyed. K-01 Serf collects debris. Imp. Heat Sink melted. G-47 Trooper destroyed. K-01 Serf collects debris. Overheating: Energy bleed (-81). Map ----- +----------------------------------------------------+ | ????????# ## ?? #?# ####+###? | | ????????# ## "???" #?# #???? ??? | | ????????#* ## "???" ### #???????? | | ????????# + ""??" / +???????? | | ????????## ## "??"" ### ## ??????? | | ?????????# ## "???" #?# #? ?????? | | ?????????# ## """"" #?# #?? ?????? | | ?????????#=## #?# #??![????? | | ?????????# ## #?# #??? ???? | | ?????#####+######+####?# #???? ??? | | ?????# # #???# #????##??? | | ?????# """ """ # #???#/#????????? | | ???### """ """ # #???? ?????????? | | ???#"" """ """ # #???? ?????????? | | ???#"T """ """ / #???? ?????????? | | ???#"" """ """ # #???? ?????????? | | ???### # #???? ?????????? | | ?????# ] # #???? ?????????? | | ?????######## ## #???? ?????????? | | ????????????#### #??????????????? | | ???????######??# #??????????????? | | ???????#= = #### +??????????????? | | ???????# ==*#T## #??????????????? | | ???????# [["=k# #??????????????? | | ???????# %mgggg #??????????????? | | ???????# @%"%=# #??????????????? | | ???????# =*# # #??????????????? | | ???????######### #??????????????? | | ???????????????# #??????????????? | | ???????????????# #??????????????? | | ???????????????# #??????????????? | | ???????????????# +??????????????? | | ???????????????# #??????????????? | | ???????????????? #??????????????? | | ???????????????? #??????????????? | | ???????????????? #??????????????? | | ???????????????? #??????????????? | | ???????????????? #??????????????? | | ???????????????? #??????????????? | | ???????????????? ???????????????? | | ??????????????????????????????????? | | ??????????????????????????????????? | | ??????????????????????????????????? | | ??????????????????????????????????? | | ??????????????????????????????????? | | ??????????????????????????????????? | | ??????????????????????????????????? | | ??????????????????????????????????? | | ??????????????????????????????????? | | ??????????????????????????????????? | +----------------------------------------------------+ Best States ------------- Heat Dissipation 31 Energy Generation 14 Energy Capacity 480 Matter Stores 265 Matter Capacity 300 Sight Range 16 Terrain Scan Density 10 Armor Coverage 150 Resistance: TH 10 Evasion (%) 55 Targeting Accuracy 5 Recoil Reduction 4 Offensive Hacking 10 Item Schematics ----------------- None Robot Schematics ------------------ None Fabricated ------------ Nothing Repaired ---------- Nothing Alien Tech Used ----------------- None Achievements -------------- None Challenges ------------ None Game ------ Seed ThermoelectricDeepMegatreads Manual? 0 Play Time 00:17:57 Cumulative 6.5 hours Start 2025.09.29 @ 22:24:52 End 2025.09.29 @ 22:40:30 Sessions 1 Manual Loads 0 Difficulty Rogue Special Mode None Game No. 14 Rogue 14 Adventurer 0 Explorer 0 Win Type - Total 0 Types 0/0/0/0/0/0/0/0/0/0 Lore% 4 Gallery% 12 Achievement% 12 Wizard Run 0 Options --------- Layout 1 ASCII 0 Keyboard 0 Movement Arrows Keybinds 0 Fullscreen 1 Font 24/Smallcaps Map View 76x35 Zoom Use 0% Tactical HUD 0 Map Filters NONE Filters NONE Steam 1 RUN: cfc83fc7-c065-4ecc-9598-229dec614c53